bitfinex/quotes_SOLUSD_20250410
["timestamp","ask_amount","ask_price","bid_price","bid_amount"]
[1744293180624,30.9406,113.12,113.07,39.08562575]
[1744293180625,8.8402,113.12,113.07,39.08562575]
[1744293180829,39.08562575,113.1,113.05,39.08562575]
[1744293181479,8.8425,113.09,113.05,39.08562575]
[1744293181650,39.08562575,113.06,113.02,39.14862575]
[1744293181928,39.08562575,113.05,113.02,0.063]
[1744293182253,39.08562575,113.04,113.02,0.063]
[1744293182637,39.08562575,113.03,113.02,0.063]
[1744293182961,26.0,113.01,113.0,0.063]
[1744293183151,65.08562575,113.01,113.0,0.063]
[1744293183457,74.21864889,113.01,113.0,0.063]
[1744293183952,73.93432575,113.01,113.0,0.063]
[1744293184558,74.21864889,113.01,113.0,0.063]
[1744293184732,73.93432575,113.01,113.0,0.063]
[1744293185142,34.8487,113.01,113.0,0.063]
[1744293185447,73.93432575,113.01,113.0,0.063]
[1744293185632,114.99019775,113.01,112.97,0.063]
[1744293185840,39.08562575,112.98,112.97,0.063]
[1744293186026,57.25492314,113.01,112.97,0.063]
[1744293186350,39.08562575,113.0,112.97,0.063]
[1744293186535,34.8487,113.01,112.97,0.063]
[1744293186738,8.8487,113.01,112.97,39.14862575]
[1744293187043,47.93392575,113.02,112.98,39.08562575]
[1744293188339,47.93392575,113.02,112.97,39.14862575]
[1744293188539,39.08562575,113.01,112.97,39.14862575]
[1744293188737,39.08562575,113.0,112.97,0.063]
[1744293189029,39.08562575,112.99,112.97,0.063]
[1744293189243,30.9682,113.02,112.97,0.063]
[1744293189448,39.08562575,113.0,112.97,0.063]
[1744293190361,39.08562575,112.98,112.97,0.063]
[1744293190733,78.1712515,112.98,112.97,0.063]
[1744293191155,39.08562575,112.98,112.97,0.063]
[1744293191868,87.0223515,112.98,112.97,0.063]
[1744293192943,87.30667464,112.98,112.97,0.063]
[1744293193662,48.22104889,112.98,112.97,0.063]
[1744293194866,87.30667464,112.98,112.97,0.063]
[1744293195164,48.22104889,112.98,112.97,0.063]
[1744293195337,47.93672575,112.98,112.97,0.063]
[1744293195534,8.8487,113.01,112.97,0.063]
[1744293195735,39.08562575,112.98,112.97,0.063]
[1744293196962,39.08562575,112.99,112.97,0.063]
[1744293197661,47.93602575,112.99,112.97,0.063]
[1744293198071,8.8479,113.02,112.97,0.063]
[1744293198374,8.8474,113.03,112.97,57.79827461]
[1744293198545,39.08562575,113.02,112.97,57.79827461]
[1744293198745,39.08562575,113.01,112.97,18.71264886]
[1744293199050,39.08562575,112.99,112.97,0.063]
[1744293200378,65.08562575,112.99,112.97,0.063]
[1744293200966,26.0,112.99,112.97,0.063]
[1744293201174,65.08562575,112.99,112.97,0.063]
[1744293201483,39.08562575,112.98,112.97,0.063]
[1744293201664,65.08562575,112.99,112.97,0.063]
[1744293201864,26.0,112.99,112.97,0.063]
[1744293202269,39.08562575,113.0,112.97,0.063]
[1744293202456,70.4536,113.08,112.99,57.73527461]
[1744293202650,39.08562575,113.04,112.99,57.73527461]
[1744293202878,8.844,113.07,113.0,39.08562575]
[1744293203083,39.08562575,113.05,112.98,0.28432314]
[1744293203289,39.08562575,113.04,112.98,0.28432314]
[1744293203658,47.93302575,113.03,112.98,47.93672575]
[1744293203856,39.08562575,113.0,112.97,0.063]
[1744293204162,39.08562575,112.99,112.97,0.063]
[1744293204366,9.13172314,113.03,112.97,8.9148]
[1744293204367,39.08562575,113.0,112.97,8.9148]
[1744293204570,26.0,113.0,112.97,8.9148]
[1744293204876,26.0,113.0,112.97,48.00042575]
[1744293205080,39.08562575,113.01,112.97,48.00042575]
[1744293205576,39.08562575,113.01,112.97,8.9148]
[1744293205777,39.08562575,112.98,112.97,0.063]
[1744293206982,39.08562575,112.99,112.97,0.063]
[1744293207279,39.08562575,113.0,112.97,8.9146]
[1744293207481,39.08562575,113.01,112.97,8.9146]
[1744293207687,8.8477,113.03,112.98,18.64964886]
[1744293207859,39.08562575,113.02,112.98,39.08562575]
[1744293208057,39.08562575,113.01,112.97,8.9146]
[1744293209378,39.08562575,113.0,112.97,0.063]
[1744293209581,39.08562575,113.04,112.99,47.93592575]
[1744293209582,26.0,113.01,112.99,47.93592575]
[1744293209774,39.08562575,113.03,112.98,27.50034886]
[1744293209973,39.08562575,113.02,112.98,47.93632575]
[1744293210180,0.14216157,113.06,112.99,18.64964886]
[1744293210380,39.08562575,113.03,112.99,18.64964886]
[1744293210576,39.08562575,113.01,112.97,8.9146]
[1744293210777,39.08562575,113.01,112.97,48.00022575]
[1744293210978,26.0,113.04,112.99,39.08562575]
[1744293211186,65.08562575,113.04,112.99,39.08562575]
[1744293211362,65.08562575,113.04,112.98,18.64964886]
[1744293211363,39.08562575,113.03,112.98,57.73527461]
[1744293211563,34.8465,113.04,112.99,8.8503]
[1744293211790,39.08562575,113.03,112.99,47.93592575]
[1744293211968,34.8465,113.04,112.99,47.93592575]
[1744293212166,39.08562575,113.03,112.99,47.93592575]
[1744293212403,39.08562575,113.03,112.99,8.8503]
[1744293213889,39.08562575,113.04,113.0,18.64964886]
[1744293214089,8.8461,113.05,113.0,57.73527461]
[1744293214474,8.8451,113.06,113.0,57.73527461]
[1744293214681,39.08562575,113.04,113.0,18.64964886]
[1744293215197,39.08562575,113.03,113.0,18.64964886]
[1744293215380,26.0,113.03,112.99,11.0505]
[1744293215576,39.08562575,113.02,112.99,11.0505]
[1744293215775,39.08562575,113.0,112.97,0.063]
[1744293215975,47.93532575,113.0,112.97,0.063]
[1744293216398,47.93472575,113.01,112.97,0.063]
[1744293216582,8.8483,113.02,112.97,57.79827461]
[1744293217179,47.93392575,113.02,112.97,57.79827461]
[1744293217379,39.08562575,113.01,112.97,18.71264886]
[1744293217691,39.08562575,113.0,112.97,18.71264886]
[1744293218002,39.08562575,113.01,112.97,18.71264886]
[1744293218204,47.93502575,113.01,112.97,18.71264886]
[1744293218426,39.08562575,113.0,112.97,18.71264886]
[1744293218576,39.08562575,112.98,112.97,0.063]
[1744293220303,87.0223515,112.98,112.97,0.063]
[1744293220779,47.93672575,112.98,112.97,0.063]
[1744293221306,39.08562575,112.98,112.97,0.063]
[1744293221510,47.93672575,112.98,112.97,0.063]
[1744293221799,26.0,112.98,112.97,0.063]
[1744293222304,73.93672575,112.98,112.97,0.063]
[1744293222474,47.93632575,112.99,112.97,0.063]
[1744293222678,39.08562575,113.0,112.97,0.063]
[1744293222906,39.08562575,112.99,112.97,0.063]
[1744293223087,39.08562575,113.0,112.97,0.063]
[1744293223290,8.8472,113.03,112.97,57.79827461]
[1744293223494,47.93282575,113.03,112.99,18.64964886]
[1744293223681,39.08562575,113.01,112.99,18.64964886]
[1744293223882,47.93282575,113.03,112.99,57.73527461]
[1744293224083,39.08562575,113.02,112.97,39.14862575]
[1744293224404,39.08562575,112.99,112.97,0.063]
[1744293225105,39.08562575,113.0,112.97,0.063]
[1744293225307,8.8491,113.01,112.97,0.063]
[1744293225513,8.8472,113.03,112.98,18.64964886]
[1744293225813,47.93282575,113.03,112.98,57.73527461]
[1744293226101,39.08562575,113.02,112.97,0.063]
[1744293226281,8.8472,113.03,112.98,18.64964886]
[1744293226481,65.08562575,113.01,112.98,18.64964886]
[1744293226677,26.0,113.01,112.98,27.50064886]
[1744293227190,26.0,113.01,112.98,66.58627461]
[1744293227401,26.0,113.01,112.97,48.00022575]
[1744293227603,65.08562575,113.01,112.98,18.64964886]
[1744293227803,7.14444687,113.08,113.0,39.08562575]
[1744293228007,47.92962575,113.07,113.02,39.08562575]
[1744293228392,39.08562575,113.06,113.02,47.93352575]
[1744293229082,0.03,113.09,113.05,57.73527461]
[1744293229296,0.03,113.09,113.06,18.64964886]
[1744293229813,0.03,113.09,113.06,39.08562575]
[1744293230018,0.03,113.09,113.06,18.64964886]
[1744293230185,0.03,113.09,113.06,57.73527461]
[1744293230388,0.03,113.07,113.06,57.73527461]
[1744293230599,0.03,113.07,113.06,27.49444886]
[1744293231007,0.03,113.07,113.05,27.49494886]
[1744293231892,0.03,113.07,113.05,66.58057461]
[1744293232101,0.03,113.07,113.06,27.49444886]
[1744293232503,0.03,113.07,113.06,66.58007461]
[1744293233210,0.03,113.07,113.02,8.8479]
[1744293233211,39.11562575,113.07,113.02,8.8479]
[1744293233522,39.08562575,113.06,113.03,18.64964886]
[1744293233810,65.11562575,113.07,113.03,18.64964886]
[1744293233999,47.93042575,113.06,113.02,47.93352575]
[1744293234319,39.08562575,113.06,113.02,47.93352575]
[1744293234493,73.95992575,113.07,113.02,47.93352575]
[1744293234688,26.03,113.07,113.03,57.73527461]
[1744293235196,65.11562575,113.07,113.02,47.93352575]
[1744293235393,39.08562575,113.06,113.02,8.8479]
[1744293235593,39.08562575,113.05,113.01,27.49794886]
[1744293235795,39.08562575,113.03,113.0,18.64964886]
[1744293236093,39.08562575,113.04,113.0,66.58437461]
[1744293236698,8.8452,113.06,113.02,39.08562575]
[1744293236699,26.0,113.06,113.02,39.08562575]
[1744293236897,0.03,113.07,113.04,39.08562575]
[1744293237085,0.03,113.07,113.01,18.933972]
[1744293237299,0.03,113.07,113.06,39.08562575]
[1744293237493,0.03,113.07,113.06,57.73527461]
[1744293238186,0.03,113.07,113.06,66.58007461]
[1744293238897,0.03,113.07,113.05,47.93082575]
[1744293241625,0.03,113.07,113.01,22.1211]
[1744293241923,39.08562575,113.06,113.02,72.22352575]
[1744293242117,39.11562575,113.07,113.02,72.22352575]
[1744293242814,34.8743,113.07,113.02,72.22352575]
[1744293243130,39.08562575,113.06,113.02,33.1379]
[1744293243328,39.08562575,113.05,113.02,24.29]
[1744293243537,39.08562575,113.03,112.97,0.063]
[1744293243700,39.08562575,112.98,112.97,0.063]
[1744293244131,39.08562575,112.99,112.97,0.063]
[1744293244300,39.08562575,112.98,112.97,0.063]
[1744293244627,39.36994889,112.98,112.97,0.063]
[1744293244827,87.30667464,112.98,112.97,0.063]
[1744293245625,26.0,112.96,112.95,0.063]
[1744293245826,65.08562575,112.96,112.95,0.063]
[1744293246816,73.93822575,112.96,112.95,0.063]
[1744293248231,74.22254889,112.96,112.95,0.063]
[1744293248448,115.00389775,112.96,112.93,0.063]
[1744293248605,39.08562575,112.94,112.93,0.063]
[1744293249007,47.93982575,112.94,112.93,0.063]
[1744293249933,8.8534,112.95,112.93,0.063]
[1744293250429,39.08562575,112.94,112.93,0.063]
[1744293250828,8.8534,112.95,112.93,0.063]
[1744293251004,39.08562575,112.94,112.93,0.063]
[1744293252008,34.8528,112.96,112.93,0.063]
[1744293252224,65.08562575,112.95,112.93,0.063]
[1744293252720,39.08562575,112.94,112.93,0.063]
[1744293253206,34.8541,112.95,112.93,0.063]
[1744293253421,39.08562575,112.94,112.93,0.063]
[1744293253623,65.08562575,112.95,112.93,0.063]
[1744293253903,39.08562575,112.94,112.93,0.063]
[1744293254109,65.08562575,112.95,112.93,0.063]
[1744293254419,73.93912575,112.95,112.93,0.063]
[1744293254617,39.08562575,112.94,112.93,0.063]
[1744293255443,47.93982575,112.94,112.93,0.063]
[1744293257435,73.93942575,112.95,112.93,0.063]
[1744293257739,39.08562575,112.94,112.93,0.063]
[1744293259436,47.93982575,112.94,112.93,0.063]
[1744293259735,34.8538,112.95,112.93,0.063]
[1744293259919,22.1247,113.0,112.93,39.14862575]
[1744293260120,39.08562575,112.95,112.93,0.063]
[1744293260737,26.0,112.95,112.93,0.063]
[1744293261114,47.93982575,112.94,112.93,0.063]
[1744293261437,39.08562575,112.94,112.93,0.063]
[1744293261619,47.93982575,112.94,112.93,0.063]
[1744293262319,34.8538,112.95,112.93,0.063]
[1744293262631,39.08562575,112.94,112.93,0.063]
[1744293263220,47.93982575,112.94,112.93,0.063]
[1744293266518,87.30977464,112.94,112.93,0.0001]
[1744293266718,48.22414889,112.94,112.93,0.0001]
[1744293267120,48.22414889,112.94,112.92,0.0431]
[1744293267320,39.08562575,112.93,112.92,0.0431]
[1744293268244,47.94062575,112.93,112.92,0.0431]
[1744293272820,51.23325077,112.93,112.92,0.0431]
[1744293273547,90.60319966,112.93,112.92,0.0001]
[1744293273748,26.28432314,112.91,112.9,0.063]
[1744293273931,65.36994889,112.91,112.9,0.063]
[1744293274126,65.08562575,112.91,112.9,0.063]
[1744293274849,65.36994889,112.91,112.9,0.063]
[1744293275026,0.28432314,112.9,112.88,0.063]
[1744293275233,65.08562575,112.89,112.86,0.063]
[1744293275545,47.94532575,112.87,112.86,0.063]
[1744293276750,19.23650509,112.94,112.86,0.063]
[1744293276925,8.855,112.93,112.87,39.08562575]
[1744293277126,42.37862642,112.92,112.87,39.08562575]
[1744293277321,42.37862642,112.92,112.88,18.64964886]
[1744293277531,3.29300067,112.92,112.91,57.73527461]
[1744293278023,47.93702575,112.98,112.91,58.01959775]
[1744293278354,8.8514,112.98,112.94,39.08562575]
[1744293278530,8.8514,112.98,112.93,39.08562575]
[1744293278843,3.2927885,112.97,112.93,39.08562575]
[1744293279043,3.2927885,112.97,112.95,39.08562575]
[1744293279540,8.8507,112.99,112.95,47.93882575]
[1744293279747,8.8798,113.0,112.95,8.8532]
[1744293279925,47.96542575,113.0,112.95,47.93882575]
[1744293280125,39.08562575,112.99,112.95,39.08562575]
[1744293280326,39.08562575,112.99,112.94,47.93952575]
[1744293280629,39.08562575,112.99,112.94,39.08562575]
[1744293280821,65.08562575,112.97,112.92,39.11804886]
[1744293281017,65.08562575,112.97,112.92,78.20367461]
[1744293281455,39.08562575,112.95,112.91,129.14182575]
[1744293281635,39.08562575,112.95,112.9,39.08562575]
[1744293281956,8.8526,112.96,112.89,32.96644886]
[1744293281957,26.0,112.93,112.89,32.96644886]
[1744293282246,39.08562575,112.93,112.88,47.94442575]
[1744293282438,39.08562575,112.93,112.89,57.73527461]
[1744293282439,65.08562575,112.93,112.89,57.73527461]
[1744293282638,26.0,112.93,112.89,57.73527461]
[1744293283149,26.0,112.93,112.91,39.08562575]
[1744293283319,26.0,112.93,112.91,18.64964886]
[1744293283645,65.08562575,112.95,112.91,57.73527461]
[1744293283819,26.0,112.95,112.91,66.59177461]
[1744293284022,65.08562575,112.95,112.91,66.59177461]
[1744293284645,65.08562575,112.95,112.91,39.08562575]
[1744293284850,26.0,112.95,112.9,8.857]
[1744293285043,65.08562575,112.95,112.9,47.94262575]
[1744293285433,26.0,112.95,112.91,57.73527461]
[1744293285748,26.0,112.95,112.91,66.59147461]
[1744293285970,26.0,112.95,112.92,39.08562575]
[1744293286525,26.0,112.95,112.91,27.50584886]
[1744293286526,22.1543,113.0,112.93,57.73527461]
[1744293286745,39.08562575,112.98,112.94,39.08562575]
[1744293287050,39.08562575,112.98,112.93,57.73527461]
[1744293287233,3.29561311,112.97,112.93,57.73527461]
[1744293287623,29.29561311,112.97,112.94,8.8542]
[1744293287828,3.29561311,112.97,112.94,8.8542]
[1744293288049,47.93672575,112.98,112.94,8.8542]
[1744293288249,39.08562575,112.96,112.92,18.64964886]
[1744293288649,3.29769941,112.95,112.92,18.64964886]
[1744293288844,3.29769941,112.95,112.92,57.73527461]
[1744293289247,3.29769941,112.95,112.91,39.08562575]
[1744293289438,3.29769941,112.94,112.91,39.08562575]
[1744293289637,39.08562575,112.93,112.88,8.8589]
[1744293289834,39.08562575,112.93,112.89,39.08562575]
[1744293290051,39.08562575,112.93,112.89,18.64964886]
[1744293290355,39.08562575,112.92,112.88,8.8589]
[1744293291457,39.08562575,112.92,112.88,47.94452575]
[1744293291649,39.08562575,112.92,112.88,8.8589]
[1744293291833,47.94102575,112.93,112.88,47.94452575]
[1744293292035,47.94102575,112.93,112.88,8.8589]
[1744293292255,47.94102575,112.93,112.88,47.94452575]
[1744293292433,3.29737005,112.92,112.88,47.94452575]
[1744293292638,3.29737005,112.92,112.89,18.64964886]
[1744293292842,83.34122575,112.98,112.92,18.64964886]
[1744293292843,8.8511,112.98,112.92,18.64964886]
[1744293293165,8.8511,112.98,112.93,57.73527461]
[1744293293166,47.93672575,112.98,112.93,57.73527461]
[1744293293551,3.29615597,112.97,112.93,57.73527461]
[1744293293856,3.29615597,112.97,112.93,66.58947461]
[1744293294062,3.29615597,112.97,112.95,39.08562575]
[1744293294237,0.03,113.0,112.96,57.73527461]
[1744293294437,0.03,113.0,112.98,39.08562575]
[1744293294845,39.11562575,113.0,112.94,18.933972]
[1744293295037,0.03,113.0,112.96,39.08562575]
[1744293295231,0.03,113.0,112.97,39.08562575]
[1744293295458,0.03,113.0,112.98,39.08562575]
[1744293295854,0.03,113.0,112.98,47.93632575]
[1744293296855,0.03,113.0,112.99,57.73527461]
[1744293297160,0.03,113.0,112.99,58.01959775]
[1744293297865,0.03,113.0,112.99,66.86989775]
[1744293298066,0.03,113.0,112.99,66.58557461]
[1744293298365,0.03,113.0,112.99,18.64964886]
[1744293298737,0.03,113.0,112.99,66.58557461]
[1744293298939,0.03,113.0,112.99,66.72773618]
[1744293300164,0.03,113.0,112.99,27.49994886]
[1744293300360,0.03,113.0,112.99,18.64964886]
[1744293300541,0.03,113.0,112.98,61.93632575]
[1744293300749,0.03,113.0,112.98,32.64964886]
[1744293300970,0.03,113.0,112.99,57.73527461]
[1744293301466,0.03,113.0,112.99,18.64964886]
[1744293301663,0.03,113.0,112.98,14.0]
[1744293301866,0.03,113.0,112.98,71.73527461]
[1744293302064,39.11562575,113.0,112.96,57.73527461]
[1744293302262,39.11562575,113.0,112.96,18.64964886]
[1744293302263,39.08562575,112.99,112.96,18.64964886]
[1744293302565,26.0,112.99,112.95,57.73527461]
[1744293302869,26.0,112.99,112.95,18.64964886]
[1744293303074,0.03,113.0,112.98,39.08562575]
[1744293303246,0.03,113.0,112.99,57.73527461]
[1744293303566,0.03,113.03,113.02,18.933972]
[1744293303773,0.0001,113.03,113.02,139.21959775]
[1744293304069,0.0001,113.03,113.02,148.06749775]
[1744293304267,0.0001,113.03,113.02,18.64964886]
[1744293304773,0.0001,113.03,113.02,66.58317461]
[1744293305749,0.0001,113.03,113.02,57.73527461]
[1744293305963,0.0001,113.03,113.02,18.64964886]
[1744293306154,0.0001,113.03,113.02,66.58317461]
[1744293306462,39.08572575,113.03,112.96,39.08562575]
[1744293306665,39.08562575,112.99,112.94,47.93942575]
[1744293306845,39.08562575,112.98,112.94,8.8538]
[1744293307046,0.28432314,113.02,112.94,47.93942575]
[1744293307257,39.08562575,112.98,112.94,8.8538]
[1744293307464,39.08562575,112.99,112.95,57.73527461]
[1744293307656,3.28454885,113.01,112.96,39.08562575]
[1744293307955,39.08562575,112.99,112.96,8.8524]
[1744293308154,39.08562575,112.98,112.93,91.7235]
[1744293308348,39.08562575,112.97,112.93,10.5235]
[1744293308558,39.08562575,112.97,112.92,39.08562575]
[1744293308559,39.08562575,112.96,112.92,8.8554]
[1744293308760,41.5061,113.0,112.93,39.08562575]
[1744293308967,39.08562575,112.97,112.93,18.64964886]
[1744293309443,39.08562575,112.97,112.92,8.8554]
[1744293309643,8.8517,112.98,112.93,66.59007461]
[1744293309870,39.08562575,112.97,112.93,27.50444886]
[1744293310067,47.93732575,112.98,112.93,66.59007461]
[1744293310274,47.93692575,112.98,112.93,66.59007461]
[1744293310873,39.08562575,112.97,112.93,66.59007461]
[1744293311547,8.8506,112.99,112.94,39.08562575]
[1744293311752,39.08562575,112.99,112.94,47.93922575]
[1744293311962,39.08562575,112.96,112.92,18.64964886]
[1744293312273,39.08562575,112.96,112.92,57.73527461]
[1744293312468,39.08562575,112.95,112.91,18.64964886]
[1744293312844,39.08562575,112.95,112.91,57.73527461]
[1744293313048,39.08562575,112.95,112.9,50.28932575]
[1744293313248,39.08562575,112.94,112.9,39.08562575]
[1744293313452,39.08562575,112.95,112.91,18.64964886]
[1744293313648,47.93762575,112.97,112.92,8.8558]
[1744293313866,39.08562575,112.96,112.91,66.59167461]
[1744293314071,8.852,112.97,112.91,66.59167461]
[1744293314277,39.08562575,112.95,112.9,39.08562575]
[1744293314648,39.08562575,112.94,112.89,111.33014886]
[1744293314843,39.08562575,112.92,112.89,81.2]
[1744293315157,39.08562575,112.92,112.88,41.50844886]
[1744293315455,39.08562575,112.92,112.88,80.59407461]
[1744293315874,39.08562575,112.91,112.88,14.0]
[1744293316176,39.08562575,112.92,112.88,14.0]
[1744293316357,65.08562575,112.92,112.88,53.08562575]
[1744293316557,8.8534,112.95,112.9,39.08562575]
[1744293316757,39.08562575,112.94,112.9,39.08562575]
[1744293316957,8.8534,112.95,112.9,39.08562575]
[1744293317257,39.08562575,112.93,112.89,57.73527461]
[1744293317462,39.08562575,112.94,112.9,39.08562575]
[1744293317868,39.08562575,112.94,112.89,66.59267461]
[1744293318076,39.08562575,112.94,112.9,39.08562575]
[1744293318369,39.08562575,112.94,112.89,66.59267461]
[1744293318573,39.08562575,112.96,112.92,18.64964886]
[1744293318777,39.08562575,112.97,112.92,39.08562575]
[1744293319077,8.8511,112.98,112.93,57.73527461]
[1744293319274,39.08562575,112.97,112.93,39.08562575]
[1744293319580,39.08562575,112.97,112.92,18.64964886]
[1744293319581,47.93622575,112.99,112.94,39.08562575]
[1744293319942,47.93622575,112.99,112.93,8.8547]
[1744293320151,39.08562575,112.97,112.92,27.50514886]
[1744293320367,39.08562575,112.96,112.91,18.64964886]
[1744293320558,65.08562575,112.96,112.92,39.08562575]
[1744293320883,26.0,112.96,112.92,39.08562575]
[1744293321258,26.0,112.96,112.93,39.08562575]
[1744293321446,26.0,112.96,112.93,8.8549]
[1744293321643,65.08562575,112.96,112.93,18.64964886]
[1744293322079,65.08562575,112.96,112.92,8.8554]
[1744293322259,26.0,112.96,112.93,57.73527461]
[1744293322456,26.0,112.96,112.93,18.64964886]
[1744293322773,39.08562575,112.95,112.91,66.59147461]
[1744293322981,29.31114886,113.01,112.93,39.08562575]
[1744293322982,10.6615,113.01,112.93,39.08562575]
[1744293323175,8.8479,113.02,112.97,39.08562575]
[1744293323376,47.93352575,113.02,112.96,0.28432314]
[1744293323562,47.93502575,113.01,112.97,18.64964886]
[1744293323748,47.93502575,113.01,112.96,47.93822575]
[1744293323946,39.08562575,113.01,112.97,57.73527461]
[1744293324268,39.08562575,113.01,112.97,18.64964886]
[1744293324572,39.08562575,113.01,112.97,57.73527461]
[1744293324759,39.08562575,113.02,112.97,57.73527461]
[1744293325177,39.08562575,113.01,112.97,57.73527461]
[1744293325578,39.08562575,113.01,112.97,47.93702575]
[1744293325776,8.8485,113.02,112.97,47.93702575]
[1744293326000,8.8476,113.03,112.98,57.73527461]
[1744293326269,39.08562575,113.01,112.97,8.8514]
[1744293326479,39.08562575,113.0,112.97,8.8514]
[1744293326863,39.08562575,112.99,112.95,129.13892575]
[1744293327069,26.0,113.0,112.96,57.73527461]
[1744293327377,26.0,113.0,112.97,39.08562575]
[1744293327579,47.93372575,113.02,112.98,8.8511]
[1744293327951,8.8474,113.03,112.98,66.58637461]
[1744293328272,47.93302575,113.03,112.98,66.58637461]
[1744293328581,8.8474,113.03,112.98,66.58637461]
[1744293328881,39.08562575,113.0,112.95,18.64964886]
[1744293329180,39.08562575,113.0,112.95,57.73527461]
[1744293329475,39.08562575,112.98,112.94,24.5028]
[1744293329680,47.93592575,112.99,112.94,63.58842575]
[1744293329884,39.08562575,112.98,112.94,63.58842575]
[1744293330262,8.8503,112.99,112.92,2.6734]
[1744293330461,39.08562575,112.95,112.91,47.94222575]
[1744293330853,8.8499,113.0,112.93,39.08562575]
[1744293331074,0.28442314,113.03,112.96,57.73527461]
[1744293331260,47.93392575,113.02,112.98,18.64964886]
[1744293331461,39.08562575,113.01,112.97,39.08562575]
[1744293331775,39.08562575,112.99,112.96,18.64964886]
[1744293331972,39.08562575,112.99,112.95,8.8533]
[1744293332280,39.08562575,112.97,112.92,18.64964886]
[1744293332461,39.08562575,112.98,112.93,39.08562575]
[1744293332784,8.8484,113.02,112.97,39.08562575]
[1744293333267,39.08562575,113.01,112.97,39.08562575]
[1744293333470,47.93402575,113.02,112.98,39.08562575]
[1744293333672,47.93402575,113.02,112.98,27.50044886]
[1744293333977,39.08562575,113.01,112.98,27.50044886]
[1744293334181,39.08562575,113.01,112.97,8.8517]
[1744293334483,39.08562575,113.0,112.97,8.8517]
[1744293334681,47.93402575,113.02,112.97,47.93732575]
[1744293334984,39.08562575,113.01,112.97,27.50134886]
[1744293335164,39.08562575,113.01,112.97,66.58697461]
[1744293335588,8.8484,113.02,112.97,66.58697461]
[1744293335763,39.08562575,113.02,112.97,66.58697461]
[1744293335960,39.08562575,113.02,112.98,18.64964886]
[1744293336179,39.08562575,113.02,112.98,57.73527461]
[1744293336567,0.0001,113.03,113.0,39.08562575]
[1744293336857,0.0001,113.03,113.02,39.08562575]
[1744293337080,0.03,113.05,113.03,13.6132]
[1744293337286,0.03,113.05,113.04,97.1052235]
[1744293337491,0.03,113.05,113.04,57.73527461]
[1744293338006,0.03,113.05,113.04,58.01959775]
[1744293338991,0.03,113.05,113.04,18.933972]
[1744293339298,0.03,113.05,113.04,66.58167461]
[1744293340288,0.03,113.05,113.04,66.86599775]
[1744293340498,0.0001,113.05,113.04,105.9516235]
[1744293340660,0.0001,113.05,113.04,66.86599775]
[1744293340860,0.0001,113.05,113.04,27.49604886]
[1744293341086,0.0001,113.05,113.04,66.58167461]
[1744293341381,0.0001,113.05,113.04,66.86599775]
[1744293341586,0.0001,113.05,113.04,187.1516235]
[1744293341886,0.0001,113.05,113.04,147.78167461]
[1744293342566,0.0001,113.05,113.04,129.13202575]
[1744293342758,0.0001,113.05,113.03,47.93242575]
[1744293342960,0.0001,113.05,113.04,39.08562575]
[1744293343183,0.0001,113.05,113.04,57.73527461]
[1744293343365,0.0001,113.05,113.04,66.58167461]
[1744293344079,0.0001,113.05,113.02,47.93352575]
[1744293344255,0.0001,113.05,113.03,57.73527461]
[1744293344456,0.0001,113.05,113.04,58.01959775]
[1744293344660,0.0001,113.05,113.04,97.1052235]
[1744293344964,0.03,113.07,113.05,18.64964886]
[1744293345170,0.03,113.07,113.06,39.08562575]
[1744293345365,0.03,113.07,113.06,47.93042575]
[1744293346786,0.03,113.07,113.06,8.8448]
[1744293347190,0.03,113.07,113.06,47.93042575]
[1744293347880,0.03,113.07,113.06,66.58007461]
[1744293348090,0.03,113.07,113.06,8.8448]
[1744293349577,0.03,113.07,113.06,66.86439775]
[1744293352286,0.03,113.07,113.06,80.78439775]
[1744293353693,0.03,113.07,113.06,41.698772]
[1744293353995,0.03,113.07,113.04,8.8464]
[1744293354497,39.11562575,113.07,113.03,129.13242575]
[1744293354694,39.11562575,113.07,113.03,8.8468]
[1744293354899,39.08562575,113.05,113.02,8.8475]
[1744293355067,39.08562575,113.06,113.02,8.8475]
[1744293355271,39.08562575,113.06,113.02,47.93312575]
[1744293355484,47.93052575,113.06,113.02,8.8475]
[1744293356696,39.08562575,113.05,113.01,66.58357461]